bitfinex/quotes_BTCUSD_20240718
["timestamp","ask_amount","ask_price","bid_price","bid_amount"]
[1721285608356,0.04602745,65096.0,65095.0,0.15362]
[1721285608552,0.013,65095.0,65094.0,0.002]
[1721285608758,0.05902719,65095.0,65094.0,0.154623]
[1721285608996,0.04602722,65095.0,65094.0,0.46087]
[1721285609201,0.04602722,65096.0,65095.0,0.153621]
[1721285609409,0.05436722,65098.0,65096.0,0.153618]
[1721285609622,0.03844927,65097.0,65096.0,0.153618]
[1721285609831,0.1074901,65097.0,65096.0,0.153618]
[1721285610028,0.08204083,65097.0,65096.0,0.153618]
[1721285610246,0.013,65097.0,65096.0,0.153618]
[1721285610681,0.013,65097.0,65096.0,0.460856]
[1721285610889,0.013,65097.0,65096.0,0.524156]
[1721285611098,0.013,65097.0,65096.0,0.605156]
[1721285611533,0.0088,65097.0,65096.0,0.605156]
[1721285611763,0.00834,65098.0,65097.0,0.768082]
[1721285611977,0.00834,65098.0,65097.0,0.460849]
[1721285612404,0.00834,65098.0,65096.0,0.1463]
[1721285612815,0.00834,65098.0,65096.0,0.1453]
[1721285613012,0.01934,65098.0,65097.0,0.001]
[1721285613457,0.01934,65098.0,65097.0,0.154616]
[1721285613670,0.02234,65098.0,65097.0,0.154616]
[1721285614500,0.02234,65098.0,65097.0,0.461849]
[1721285614715,0.02234,65098.0,65097.0,0.154616]
[1721285615364,0.02234,65098.0,65097.0,0.1606511]
[1721285615760,0.02634,65098.0,65097.0,0.1606511]
[1721285616191,0.02234,65098.0,65097.0,0.1606511]
[1721285616600,0.02634,65098.0,65097.0,0.1616511]
[1721285618936,0.02234,65098.0,65097.0,0.92949884]
[1721285619168,0.02234,65098.0,65097.0,0.6127841]
[1721285619375,0.03034,65098.0,65097.0,0.3055511]
[1721285619582,0.323569,65098.0,65097.0,0.0070351]
[1721285619807,0.460849,65097.0,65096.0,0.000913]
[1721285620016,1.39821726,65097.0,65096.0,0.000913]
[1721285620228,1.57663452,65097.0,65096.0,0.000913]
[1721285620438,1.59963452,65097.0,65096.0,0.000913]
[1721285620637,1.75398409,65097.0,65096.0,0.000913]
[1721285620842,1.84629324,65097.0,65096.0,0.000913]
[1721285621048,1.75398409,65097.0,65096.0,0.000913]
[1721285621472,1.89191714,65097.0,65096.0,0.000913]
[1721285621681,1.59956133,65097.0,65096.0,0.000913]
[1721285622111,1.39517959,65097.0,65096.0,0.000913]
[1721285622558,1.44517959,65097.0,65096.0,0.000913]
[1721285623007,1.45717959,65097.0,65096.0,0.001913]
[1721285623201,1.61152916,65097.0,65096.0,0.001913]
[1721285623406,1.56152916,65097.0,65096.0,0.001913]
[1721285623609,1.57552916,65097.0,65096.0,0.001913]
[1721285624283,1.25429616,65097.0,65096.0,0.001913]
[1721285624519,1.26920032,65097.0,65096.0,0.001913]
[1721285624932,1.21044188,65097.0,65096.0,0.001913]
[1721285625150,1.26956328,65097.0,65096.0,0.001913]
[1721285626024,1.25556328,65097.0,65096.0,0.001913]
[1721285626234,1.24356328,65097.0,65096.0,0.000913]
[1721285626460,1.25756328,65097.0,65096.0,0.001913]
[1721285626674,0.73535549,65097.0,65096.0,0.001913]
[1721285626902,0.58100592,65097.0,65096.0,0.001913]
[1721285627798,0.55422902,65097.0,65096.0,0.00769138]
[1721285628009,0.54322902,65097.0,65096.0,0.00669138]
[1721285628249,0.55422902,65097.0,65096.0,0.00769138]
[1721285628460,0.65655693,65097.0,65096.0,0.001913]
[1721285628660,1.01378993,65097.0,65096.0,0.001913]
[1721285628873,1.02408993,65097.0,65096.0,0.001913]
[1721285629091,1.07408993,65097.0,65096.0,0.001913]
[1721285629313,1.08808993,65097.0,65096.0,0.002913]
[1721285629996,1.03808993,65097.0,65096.0,0.002913]
[1721285630433,1.12118993,65097.0,65096.0,0.002913]
[1721285630929,1.11180991,65097.0,65096.0,0.002913]
[1721285631152,1.12067691,65097.0,65096.0,0.002913]
[1721285632380,0.97727691,65097.0,65096.0,0.002913]
[1721285633083,0.567716,65097.0,65096.0,0.002913]
[1721285634015,0.460849,65097.0,65096.0,0.000913]
[1721285634251,0.58994958,65097.0,65096.0,0.001913]
[1721285634474,0.26969388,65097.0,65096.0,0.002913]
[1721285634718,0.60512837,65097.0,65096.0,0.00869138]
[1721285635174,0.60512837,65097.0,65096.0,0.002913]
[1721285635640,0.59112837,65097.0,65096.0,0.001913]
[1721285635880,0.58112837,65097.0,65096.0,0.000913]
[1721285636089,0.59512837,65097.0,65096.0,0.001913]
[1721285636773,0.60512837,65097.0,65096.0,0.002913]
[1721285637689,0.91236137,65097.0,65096.0,0.002913]
[1721285637924,1.05045876,65097.0,65096.0,0.002913]
[1721285638625,0.93536137,65097.0,65096.0,0.002913]
[1721285638906,1.05045876,65097.0,65096.0,0.002913]
[1721285639358,0.93536137,65097.0,65096.0,0.002913]
[1721285640306,0.791082,65097.0,65096.0,0.000913]
[1721285640537,0.470849,65097.0,65096.0,0.001913]
[1721285640760,0.484849,65097.0,65096.0,0.002913]
[1721285642295,0.474849,65097.0,65096.0,0.001913]
[1721285642516,0.167616,65097.0,65096.0,0.001913]
[1721285642733,0.163616,65097.0,65096.0,0.001913]
[1721285642967,0.176616,65097.0,65096.0,0.002913]
[1721285643672,0.483849,65097.0,65096.0,0.002913]
[1721285643890,0.65740565,65097.0,65096.0,0.00847529]
[1721285644115,0.56533082,65097.0,65096.0,0.002913]
[1721285644788,0.26869155,65097.0,65096.0,0.002913]
[1721285644978,0.26869155,65097.0,65096.0,0.066413]
[1721285645228,0.176616,65097.0,65096.0,0.07197529]
[1721285645470,0.17398596,65097.0,65096.0,0.07197529]
[1721285645689,0.023,65097.0,65096.0,0.30139429]
[1721285645899,0.01,65097.0,65096.0,0.30039429]
[1721285646111,0.09205504,65097.0,65096.0,0.30139429]
[1721285646322,0.013,65097.0,65096.0,0.30039429]
[1721285646770,0.023,65097.0,65096.0,0.30139429]
[1721285646989,0.092055,65097.0,65096.0,0.30139429]
[1721285647255,0.023,65097.0,65096.0,0.30139429]
[1721285647514,0.023,65097.0,65096.0,0.00847529]
[1721285647756,0.10041339,65098.0,65096.0,0.00647529]
[1721285647942,0.17791602,65098.0,65096.0,0.00647529]
[1721285648409,0.05932324,65097.0,65096.0,0.00647529]
[1721285648626,0.05932315,65097.0,65096.0,0.00647529]
[1721285649061,0.06932315,65097.0,65096.0,0.00747529]
[1721285649273,0.07856004,65097.0,65096.0,0.00847529]
[1721285649918,0.019,65097.0,65096.0,0.00847529]
[1721285650127,0.07873988,65097.0,65096.0,0.00847529]
[1721285650591,0.08805638,65097.0,65096.0,0.16209429]
[1721285651067,0.08805638,65097.0,65096.0,0.46933229]
[1721285651288,0.14876555,65097.0,65096.0,0.16209429]
[1721285651506,0.08805578,65097.0,65096.0,0.16209429]
[1721285651957,0.08805578,65097.0,65096.0,0.53343229]
[1721285652181,0.019,65097.0,65096.0,0.53343229]
[1721285652402,0.0880546,65097.0,65096.0,0.53343229]
[1721285652843,0.08805508,65097.0,65096.0,0.53343229]
[1721285653498,0.08805508,65097.0,65096.0,0.61313229]
[1721285654191,0.019,65097.0,65096.0,1.07475203]
[1721285654620,0.019,65097.0,65096.0,1.38199003]
[1721285655764,0.009,65097.0,65096.0,1.38099003]
[1721285656207,0.008,65097.0,65096.0,1.38099003]
[1721285656605,0.00834,65098.0,65097.0,0.768082]
[1721285656852,0.00834,65098.0,65097.0,0.92246374]
[1721285657279,0.00834,65098.0,65097.0,0.92801236]
[1721285658617,0.00834,65098.0,65097.0,1.23524536]
[1721285658830,0.00834,65098.0,65097.0,1.37444536]
[1721285660388,0.01334,65098.0,65097.0,1.37444536]
[1721285660609,0.01434,65098.0,65097.0,1.37444536]
[1721285660820,0.00934,65098.0,65097.0,1.37444536]
[1721285661042,0.00834,65098.0,65097.0,1.37444536]
[1721285661283,0.01234,65098.0,65097.0,1.37444536]
[1721285661531,0.01234,65098.0,65097.0,1.68167836]
[1721285662486,0.0006033,65100.0,65099.0,1.575708]
[1721285662722,0.0148179,65102.0,65101.0,0.884801]
[1721285663014,0.0148179,65102.0,65101.0,2.18782709]
[1721285663272,0.0148179,65102.0,65101.0,2.19334928]
[1721285663505,0.00834,65113.0,65110.0,1.678974]
[1721285663729,0.00834,65113.0,65110.0,2.06035809]
[1721285664221,0.00834,65113.0,65110.0,1.93887793]
[1721285665442,0.00834,65113.0,65110.0,1.95287793]
[1721285665443,0.00935,65111.0,65110.0,1.95287793]
[1721285666629,0.00935,65111.0,65110.0,1.96487793]
[1721285669699,0.00935,65111.0,65110.0,2.01487793]
[1721285669929,0.00935,65111.0,65110.0,1.96487793]
[1721285670716,0.00935,65111.0,65110.0,2.32204993]
[1721285670963,0.00935,65111.0,65110.0,2.49077565]
[1721285671665,0.00935,65111.0,65110.0,2.49077114]
[1721285672616,0.00935,65111.0,65110.0,2.44077114]
[1721285673084,0.00935,65111.0,65110.0,2.44077085]
[1721285673314,0.00435,65111.0,65110.0,2.4303277]
[1721285673545,0.00435,65111.0,65110.0,2.47155085]
[1721285674028,0.00335,65111.0,65110.0,2.49555085]
[1721285674268,0.00335,65111.0,65110.0,2.52355085]
[1721285674719,0.00335,65111.0,65110.0,2.49555085]
[1721285675577,0.00335,65111.0,65110.0,2.50955085]
[1721285675831,0.00335,65111.0,65110.0,2.56323236]
[1721285676305,0.00335,65111.0,65110.0,2.51323236]
[1721285676541,0.00335,65111.0,65110.0,2.20606036]
[1721285676769,0.00335,65111.0,65110.0,2.16483721]
[1721285676998,0.00335,65111.0,65110.0,2.20606036]
[1721285677244,0.00335,65111.0,65110.0,2.20606052]
[1721285677703,0.00335,65111.0,65110.0,2.16483737]
[1721285677944,0.00335,65111.0,65110.0,2.20606052]
[1721285678210,0.00335,65111.0,65110.0,2.07856259]
[1721285678409,0.00335,65111.0,65110.0,1.99765793]
[1721285678950,0.00335,65111.0,65110.0,1.69048593]
[1721285679179,0.00335,65111.0,65110.0,1.65970593]
[1721285679408,0.00335,65111.0,65110.0,1.62680593]
[1721285679890,0.00335,65111.0,65110.0,1.56300593]
[1721285680373,0.00335,65111.0,65110.0,1.53500593]
[1721285680619,0.00335,65111.0,65110.0,1.54800593]
[1721285680868,0.00335,65111.0,65110.0,1.55900593]
[1721285681796,0.00335,65111.0,65110.0,1.54600593]
[1721285682033,0.00335,65111.0,65110.0,1.56400593]
[1721285682310,0.00335,65111.0,65110.0,1.54500593]
[1721285683679,0.00335,65111.0,65110.0,1.54600593]
[1721285683936,0.00335,65111.0,65110.0,1.55900593]
[1721285684152,0.00335,65111.0,65110.0,1.54800593]
[1721285684376,0.00335,65111.0,65110.0,1.54300593]
[1721285684607,0.00335,65111.0,65110.0,1.68610593]
[1721285684833,0.00335,65111.0,65110.0,1.68910593]
[1721285685056,0.00335,65111.0,65110.0,1.55700593]
[1721285686033,0.00335,65111.0,65110.0,1.03883393]
[1721285686964,0.00335,65111.0,65110.0,1.02783393]
[1721285687446,0.00335,65111.0,65110.0,1.04083393]
[1721285687670,0.00335,65111.0,65110.0,1.34800593]
[1721285687864,0.00335,65111.0,65110.0,1.34600593]
[1721285688322,0.00335,65111.0,65110.0,1.35900593]
[1721285689329,0.00335,65111.0,65110.0,1.48652476]
[1721285689784,0.00335,65111.0,65110.0,1.35900593]
[1721285692356,0.00335,65111.0,65110.0,1.48652923]
[1721285693325,0.00335,65111.0,65110.0,1.17935723]
[1721285693565,0.00335,65111.0,65110.0,1.05183393]
[1721285697104,0.14695,65111.0,65110.0,0.28390393]
[1721285697543,0.14695,65111.0,65110.0,0.02952219]
[1721285697755,0.6077,65111.0,65110.0,0.02952219]
[1721285698006,0.6077,65111.0,65110.0,0.01652219]
[1721285698007,0.914867,65111.0,65110.0,0.01652219]
[1721285698236,0.153598,65105.0,65102.0,0.000913]
[1721285698459,0.1436,65104.0,65102.0,0.000913]
[1721285698904,0.1406,65104.0,65102.0,0.000913]
[1721285699131,0.601407,65103.0,65102.0,0.000913]
[1721285699353,0.908612,65103.0,65102.0,0.000913]
[1721285700240,0.96605117,65103.0,65102.0,0.000913]
[1721285700451,1.27325617,65103.0,65102.0,0.000913]
[1721285700681,1.01196223,65103.0,65102.0,0.000913]
[1721285700909,1.10211597,65103.0,65102.0,0.000913]
[1721285701123,0.601407,65103.0,65102.0,0.000913]
[1721285701418,0.296202,65103.0,65102.0,0.000913]
[1721285701654,0.296202,65103.0,65102.0,0.154518]
[1721285701655,0.1426,65103.0,65102.0,0.154518]
[1721285701886,0.1426,65103.0,65102.0,0.001913]
[1721285701887,0.1496,65103.0,65102.0,0.001913]
[1721285702103,0.1426,65103.0,65102.0,0.154518]
[1721285702527,0.1496,65103.0,65102.0,0.155518]
[1721285702958,0.1476,65103.0,65102.0,0.001913]
[1721285703422,0.1506,65103.0,65102.0,0.156518]
[1721285703890,0.1476,65103.0,65102.0,0.001913]
[1721285704101,0.1476,65103.0,65102.0,0.002913]
[1721285704102,0.1506,65103.0,65102.0,0.002913]
[1721285704315,0.1506,65103.0,65102.0,0.001913]
[1721285704557,0.1436,65103.0,65102.0,0.001913]
[1721285704785,0.1496,65103.0,65102.0,0.00799897]
[1721285705016,0.1496,65103.0,65102.0,0.00699897]
[1721285705444,0.1556,65103.0,65102.0,0.00799897]
[1721285706748,0.923612,65103.0,65102.0,0.00799897]
[1721285706973,1.2924559,65103.0,65102.0,0.00799897]
[1721285707189,1.2924559,65103.0,65102.0,0.002913]
[1721285707190,1.3424559,65103.0,65102.0,0.002913]
[1721285707404,1.39573642,65103.0,65102.0,0.002913]
[1721285707678,1.38440845,65103.0,65102.0,0.001913]
[1721285707900,1.2804559,65103.0,65102.0,0.001913]
[1721285708120,1.34151554,65103.0,65102.0,0.001913]
[1721285708358,1.2834559,65103.0,65102.0,0.001913]
[1721285709044,0.1466,65103.0,65102.0,0.001913]
[1721285709256,0.300202,65103.0,65102.0,0.001913]
[1721285709508,0.303202,65103.0,65102.0,0.002913]
[1721285709959,0.1496,65103.0,65102.0,0.31089974]
[1721285710417,0.1496,65103.0,65102.0,0.31598404]
[1721285710650,0.009,65103.0,65102.0,0.31598404]
[1721285710880,0.009,65103.0,65102.0,0.62319404]
[1721285712282,0.009,65103.0,65102.0,0.31598404]
[1721285713672,0.009,65103.0,65102.0,0.62319404]
[1721285714896,0.009,65103.0,65102.0,0.0079973]
[1721285715380,0.009,65103.0,65102.0,0.1616023]
[1721285715859,0.009,65103.0,65102.0,0.0079973]
[1721285716108,0.0755,65103.0,65102.0,0.0079973]
[1721285716361,0.0755,65103.0,65102.0,0.4688123]
[1721285716602,0.009,65103.0,65102.0,0.4688123]
[1721285718067,0.009,65103.0,65102.0,0.62319404]
[1721285718515,0.009,65103.0,65102.0,0.93040404]
[1721285719449,0.009,65103.0,65102.0,0.62319404]
[1721285720628,0.009,65103.0,65102.0,0.93040404]
[1721285721593,0.009,65103.0,65102.0,1.23761404]
[1721285722067,0.006,65103.0,65102.0,1.23661404]
[1721285722293,0.009,65103.0,65102.0,1.23561404]
[1721285722558,0.003,65103.0,65102.0,1.23561404]
[1721285722787,0.009,65103.0,65102.0,1.23661404]
[1721285723698,0.003,65103.0,65102.0,1.23561404]
[1721285723967,0.00335,65111.0,65110.0,0.460758]
[1721285724488,0.00335,65111.0,65110.0,0.46582767]
[1721285725354,0.00635,65111.0,65110.0,0.46582767]
[1721285725983,0.00635,65111.0,65110.0,0.77299967]
[1721285726737,0.01035,65111.0,65110.0,0.77399967]
[1721285726995,0.01035,65111.0,65110.0,0.46682767]
[1721285727986,0.01035,65111.0,65110.0,0.15965567]
[1721285728842,0.01035,65111.0,65110.0,0.16045141]
[1721285729065,0.01035,65111.0,65110.0,1.29865341]
[1721285729498,0.01035,65111.0,65110.0,1.23555341]
[1721285730178,0.00635,65111.0,65110.0,1.23455341]
[1721285730409,0.00435,65111.0,65110.0,0.92738141]
[1721285730860,0.00735,65111.0,65110.0,0.92738141]
[1721285731349,0.00435,65111.0,65110.0,0.92738141]
[1721285732206,0.00435,65111.0,65110.0,0.00606967]
[1721285732416,0.06705,65111.0,65110.0,0.00606967]
[1721285733302,0.14375,65111.0,65110.0,0.00606967]
[1721285734987,0.6045,65111.0,65110.0,0.001]
[1721285735229,0.6045,65111.0,65110.0,0.0060474]
[1721285735435,0.6045,65111.0,65110.0,0.001]
[1721285736717,0.153587,65110.0,65104.0,0.1536]
[1721285736938,0.2520747,65111.0,65105.0,0.0050474]
[1721285737198,0.15075,65111.0,65110.0,0.001]
[1721285737614,0.14775,65111.0,65110.0,0.00505912]
[1721285737820,0.14275,65111.0,65105.0,0.30797874]
[1721285738033,0.6706125,65111.0,65110.0,0.00505883]
[1721285738246,0.307173,65110.0,65105.0,0.001]
[1721285738467,0.297395,65106.0,65105.0,0.001]
[1721285738890,0.604586,65106.0,65105.0,0.001]
[1721285739323,0.6505749,65106.0,65105.0,0.001]
[1721285739528,0.153598,65105.0,65102.0,0.000913]
[1721285740208,0.1536,65104.0,65102.0,0.000913]
[1721285741268,0.910012,65103.0,65102.0,0.000913]
[1721285741426,1.36709466,65103.0,65102.0,0.000913]
[1721285741644,1.42946643,65103.0,65102.0,0.000913]
[1721285741813,1.47946643,65103.0,65102.0,0.000913]
[1721285742015,1.47946643,65103.0,65102.0,0.001913]
[1721285742215,1.52650089,65103.0,65102.0,0.001913]
[1721285742440,1.47655128,65103.0,65102.0,0.001913]
[1721285743453,1.29816725,65103.0,65102.0,0.000913]
[1721285743681,1.31216725,65103.0,65102.0,0.001913]
[1721285744087,1.30616725,65103.0,65102.0,0.001913]
[1721285744302,1.32016725,65103.0,65102.0,0.002913]
[1721285744716,1.31216725,65103.0,65102.0,0.001913]
[1721285744883,1.32416725,65103.0,65102.0,0.002913]
[1721285745088,1.32517484,65103.0,65102.0,0.002913]
[1721285745302,1.44016412,65103.0,65102.0,0.002913]
[1721285745715,1.44015559,65103.0,65102.0,0.002913]
[1721285745926,1.52952441,65103.0,65102.0,0.002913]
[1721285746166,1.52951481,65103.0,65102.0,0.002913]
[1721285746809,1.47951481,65103.0,65102.0,0.002913]
[1721285747217,1.52951481,65103.0,65102.0,0.002913]
[1721285748087,1.55355017,65103.0,65102.0,0.002913]
[1721285748307,1.52951481,65103.0,65102.0,0.002913]
[1721285748730,1.68389655,65103.0,65102.0,0.002913]
[1721285749143,1.52951481,65103.0,65102.0,0.002913]
[1721285749342,1.37516524,65103.0,65102.0,0.002913]
[1721285749562,1.32516524,65103.0,65102.0,0.002913]
[1721285749778,1.37516524,65103.0,65102.0,0.002913]
[1721285750840,1.32516524,65103.0,65102.0,0.002913]
[1721285751070,1.37516524,65103.0,65102.0,0.002913]
[1721285751484,1.52951481,65103.0,65102.0,0.002913]
[1721285751926,1.316217,65103.0,65102.0,0.002913]
[1721285752141,1.37603707,65103.0,65102.0,0.002913]
[1721285753436,1.44093254,65103.0,65102.0,0.002913]
[1721285753799,1.32603707,65103.0,65102.0,0.002913]
[1721285754009,1.44093254,65103.0,65102.0,0.002913]
[1721285755290,1.48067586,65103.0,65102.0,0.002913]
[1721285755428,1.59556375,65103.0,65102.0,0.002913]
[1721285755629,1.42056657,65103.0,65102.0,0.002913]
[1721285755829,1.59555892,65103.0,65102.0,0.002913]
[1721285756043,1.48067495,65103.0,65102.0,0.002913]
[1721285756678,1.53067495,65103.0,65102.0,0.002913]
[1721285758527,1.53058196,65103.0,65102.0,0.002913]
[1721285758731,1.64543842,65103.0,65102.0,0.002913]
[1721285760287,1.59543842,65103.0,65102.0,0.002913]
[1721285760714,1.48058196,65103.0,65102.0,0.002913]
[1721285760910,1.42056657,65103.0,65102.0,0.002913]
[1721285761169,1.57176414,65103.0,65102.0,0.002913]
[1721285761984,1.47989453,65103.0,65102.0,0.002913]
[1721285762195,1.57176126,65103.0,65102.0,0.002913]
[1721285763815,1.42056657,65103.0,65102.0,0.002913]
[1721285764044,1.57186781,65103.0,65102.0,0.002913]
[1721285764279,1.57186797,65103.0,65102.0,0.002913]
[1721285764508,1.48006906,65103.0,65102.0,0.002913]
[1721285765064,1.57192237,65103.0,65102.0,0.002913]
[1721285765304,1.57192236,65103.0,65102.0,0.002913]
[1721285765608,2.01569422,65103.0,65102.0,0.002913]
[1721285765836,2.24745243,65103.0,65102.0,0.002913]
[1721285766056,2.20967392,65103.0,65102.0,0.002913]
[1721285766295,2.34744929,65103.0,65102.0,0.002913]
[1721285766534,2.20967392,65103.0,65102.0,0.002913]
[1721285767016,2.05619076,65103.0,65102.0,0.002913]
[1721285767263,2.1973639,65103.0,65102.0,0.001913]
[1721285767733,2.2113639,65103.0,65102.0,0.002913]
[1721285768210,2.1973639,65103.0,65102.0,0.001913]
[1721285769132,2.1973639,65103.0,65086.0,0.000713]
[1721285769133,1.265515,65097.0,65086.0,0.000713]
[1721285769395,2.10694033,65097.0,65086.0,0.000713]
[1721285770093,2.10649205,65097.0,65086.0,0.000713]
[1721285772054,2.12049205,65097.0,65086.0,0.000713]
[1721285772925,2.08449205,65097.0,65086.0,0.000713]
[1721285773184,2.22944583,65097.0,65086.0,0.000713]
[1721285773371,2.2305695,65097.0,65086.0,0.000713]
[1721285775238,2.2305695,65097.0,65096.0,0.000913]
[1721285776660,2.23058569,65097.0,65096.0,0.000913]
[1721285779752,2.23044759,65097.0,65096.0,0.000913]
[1721285781206,1.42127907,65097.0,65096.0,0.000913]
[1721285781438,0.87979883,65097.0,65096.0,0.000913]
[1721285781934,0.99467311,65097.0,65096.0,0.000913]
[1721285782686,0.87979883,65097.0,65096.0,0.000913]
[1721285783387,0.88114077,65097.0,65096.0,0.000913]
[1721285783616,1.03172556,65097.0,65096.0,0.000913]
[1721285784604,0.57390777,65097.0,65096.0,0.000913]
[1721285784865,0.57390777,65097.0,65096.0,0.081513]
[1721285785105,0.88114077,65097.0,65096.0,0.145813]
[1721285785824,0.86714077,65097.0,65096.0,0.145813]
[1721285786056,0.8530331,65097.0,65096.0,0.145813]
[1721285786285,0.028,65097.0,65096.0,1.11828974]
[1721285786500,0.028,65097.0,65096.0,1.42552774]
[1721285786717,0.028,65097.0,65096.0,1.43063915]
[1721285787190,0.042,65097.0,65096.0,1.43063915]
[1721285787414,0.028,65097.0,65096.0,1.43063915]
[1721285788573,0.042,65097.0,65096.0,1.43063915]
[1721285788802,0.00335,65111.0,65110.0,0.81793]
[1721285789012,0.00335,65111.0,65110.0,1.41768374]
[1721285789218,0.00335,65111.0,65110.0,1.42279466]
[1721285790683,0.00335,65111.0,65110.0,1.42779466]
[1721285791351,0.00335,65111.0,65110.0,1.42279466]
[1721285791579,0.00435,65111.0,65110.0,1.42879466]
[1721285791816,0.00435,65111.0,65110.0,1.42979466]
[1721285792038,0.00335,65111.0,65110.0,1.42379466]
[1721285792530,0.00435,65111.0,65110.0,1.43079466]
[1721285792802,0.00435,65111.0,65110.0,1.43479466]
[1721285793024,0.00435,65111.0,65110.0,1.43079466]
[1721285793517,0.00435,65111.0,65110.0,1.43679466]
[1721285800181,0.772267,65111.0,65110.0,0.01911092]
[1721285800389,0.5586847,65111.0,65110.0,0.01911092]
[1721285800596,0.2515177,65111.0,65110.0,0.014]
[1721285800806,0.4651,65111.0,65110.0,0.014]
[1721285801056,0.4641,65111.0,65110.0,0.006]
[1721285801279,0.4661,65111.0,65110.0,0.006]
[1721285801713,0.4641,65111.0,65110.0,0.006]
[1721285802349,0.153588,65109.0,65103.0,0.153602]
[1721285802565,0.153588,65109.0,65104.0,0.15438174]
[1721285802772,0.153588,65109.0,65104.0,0.15942179]
[1721285802983,0.153588,65109.0,65106.0,0.05]
[1721285803195,0.153588,65109.0,65105.0,0.05]
[1721285803402,0.153588,65109.0,65106.0,0.05]
[1721285803661,0.153588,65109.0,65106.0,0.0050471]
[1721285803869,0.156588,65109.0,65106.0,0.0050471]
[1721285804103,0.153588,65109.0,65106.0,0.0050471]
[1721285804665,0.153588,65109.0,65105.0,0.05]
[1721285804881,0.153588,65109.0,65107.0,0.00506286]
[1721285805076,0.153588,65109.0,65104.0,0.30798174]
[1721285805279,0.153588,65109.0,65108.0,0.00506286]
[1721285805477,0.156588,65109.0,65108.0,0.00506286]
[1721285805703,0.156588,65109.0,65104.0,0.30798174]
[1721285805903,0.153588,65109.0,65108.0,0.00506286]
[1721285806140,0.153588,65109.0,65105.0,0.05]
[1721285806340,0.156588,65109.0,65108.0,0.00506286]
[1721285806554,0.003,65109.0,65107.0,0.05]
[1721285806750,0.003,65109.0,65108.0,0.00506058]
[1721285807085,0.006,65109.0,65108.0,0.36303232]
[1721285807294,0.006,65109.0,65108.0,0.67021332]
[1721285807477,0.00335,65111.0,65109.0,0.203588]
[1721285807682,0.00335,65111.0,65110.0,0.81143974]
[1721285807886,0.00335,65111.0,65110.0,1.11861174]
[1721285808098,0.00335,65111.0,65110.0,1.12367232]
[1721285808941,0.00535,65111.0,65110.0,1.12367232]
[1721285809202,0.00535,65111.0,65110.0,1.43084432]
[1721285810274,0.00335,65111.0,65110.0,1.43084432]
[1721285810485,0.00535,65111.0,65110.0,1.43084432]
[1721285810962,0.00935,65111.0,65110.0,2.03801632]
[1721285811425,0.01035,65111.0,65110.0,2.03801632]
[1721285811655,0.01035,65111.0,65110.0,2.16552405]
[1721285811885,0.01035,65111.0,65110.0,2.03801632]
[1721285811886,0.00935,65111.0,65110.0,2.03801632]
[1721285812131,0.01035,65111.0,65110.0,2.17752413]
[1721285812359,0.00435,65111.0,65110.0,2.17752413]
[1721285812601,0.00435,65111.0,65110.0,2.38012413]
[1721285812809,0.00835,65111.0,65110.0,2.38012413]
[1721285813017,0.00835,65111.0,65110.0,2.41090413]
[1721285813230,0.00435,65111.0,65110.0,2.41090413]
[1721285813649,0.00535,65111.0,65110.0,2.41990413]
[1721285813869,0.00435,65111.0,65110.0,2.40790413]
[1721285814077,0.00435,65111.0,65110.0,2.41290413]
[1721285814291,0.00535,65111.0,65110.0,2.29939632]
[1721285814507,0.00535,65111.0,65110.0,2.42690124]
[1721285814724,0.00435,65111.0,65110.0,2.41290124]
[1721285814928,0.00535,65111.0,65110.0,2.42690124]
[1721285817538,0.00535,65111.0,65110.0,2.42689968]
[1721285818259,0.00535,65111.0,65110.0,2.37689968]
[1721285818846,0.00535,65111.0,65110.0,2.42689968]
[1721285820407,0.00535,65111.0,65110.0,2.37689968]
[1721285820615,0.00535,65111.0,65110.0,2.37689992]
[1721285821016,0.00535,65111.0,65110.0,2.42689992]
[1721285821630,0.00535,65111.0,65110.0,2.60656832]
[1721285821780,0.00535,65111.0,65110.0,2.7340718]
[1721285822379,0.00535,65111.0,65110.0,3.2840718]
[1721285822582,0.00535,65111.0,65110.0,3.27126823]
[1721285822846,0.00435,65111.0,65110.0,4.13726823]
[1721285823293,0.00535,65111.0,65110.0,4.1140718]
[1721285823512,0.00535,65111.0,65110.0,4.1000718]
[1721285823717,0.00535,65111.0,65110.0,4.13726823]
[1721285823925,0.00535,65111.0,65110.0,3.63726823]
[1721285824193,0.00535,65111.0,65110.0,2.7200718]
[1721285824429,0.00535,65111.0,65110.0,2.7340718]
[1721285824848,0.00535,65111.0,65110.0,2.7200718]
[1721285825676,0.00535,65111.0,65110.0,2.7340718]
[1721285825884,0.00535,65111.0,65110.0,2.4268998]
[1721285826089,0.00535,65111.0,65110.0,2.2472998]
[1721285826299,0.00535,65111.0,65110.0,2.11979632]
[1721285826503,0.00535,65111.0,65110.0,2.24730138]
[1721285827377,0.00535,65111.0,65110.0,2.04730138]
[1721285828828,0.05108189,65125.0,65124.0,0.203553]
[1721285829046,0.05108189,65125.0,65124.0,0.76504074]
[1721285829277,0.05108189,65125.0,65124.0,0.77003548]
[1721285829484,0.05108189,65125.0,65124.0,1.07714148]
[1721285830111,0.00835,65127.0,65126.0,0.460645]
[1721285830344,0.00835,65127.0,65126.0,0.66502674]
[1721285830790,0.00835,65127.0,65126.0,0.67002148]
[1721285831399,0.00835,65127.0,65126.0,1.29321548]
[1721285832049,0.00835,65127.0,65126.0,0.98611848]
[1721285833373,0.00935,65127.0,65126.0,0.99411848]
[1721285834779,0.15345,65127.0,65126.0,0.68702148]
[1721285835543,0.15345,65127.0,65126.0,0.99411848]
[1721285835753,0.15345,65127.0,65126.0,1.75081248]
[1721285835754,0.00935,65127.0,65126.0,1.75081248]
[1721285835953,0.00935,65127.0,65126.0,1.85081248]
[1721285836352,0.00935,65127.0,65126.0,2.17830029]
[1721285836543,0.00935,65127.0,65126.0,2.17830129]
[1721285838810,0.00935,65127.0,65126.0,1.90831248]
[1721285839045,0.00935,65127.0,65126.0,2.03580093]
[1721285839243,0.00935,65127.0,65126.0,1.60121548]
[1721285839510,0.00935,65127.0,65126.0,1.72870395]